Cogmind - Beta 15 @@@ ROGUE MODE // 2025.07.01 @ 22:50:31 Player: worthless slave Result: Destroyed by SN-IVM(R) with Subdweller Laser Performance ------------- Evolutions (0) 0 Regions Visited (3) 600 Robots Destroyed (18) 90 Value Destroyed (446) 446 Prototype IDs (0) 0 Alien Tech Used (0) 0 Bonus (0) 0 TOTAL SCORE: 1136 Bonus ------- None Cogmind --------- Core Integrity 0/250 Matter 291/300 Energy 160/160 System Corruption 2% Temperature Cool (6) Movement Walking (190) Ox1 Location -10/Subcaves Parts ------- > --- POWER (1) -------- Light Nuclear Core > --- PROPULSION (2) --- Aluminum Leg Aluminum Leg > --- UTILITY (2) ------ Large Storage Unit Machine Analyzer > --- WEAPON (2) ------- Makeshift Hammer > --- INVENTORY (15) --- Aluminum Leg Aluminum Leg Heat Sink Disposable Heat Sink Subdweller Optics Improved Terrain Scanner Terrain Scan Processor Scrap Shield Hacking Suite Small Laser Light Assault Rifle Scrap Shield Fragment (48) Scrap Shield Fragment (48) Scrap Shield Fragment (46) Peak State ------------ > --- POWER ------------ Light Nuclear Core > --- PROPULSION ------- Aluminum Leg Aluminum Leg > --- UTILITY ---------- Large Storage Unit Machine Analyzer > --- WEAPON ----------- Makeshift Hammer > --- INVENTORY -------- Aluminum Leg Aluminum Leg Aluminum Leg Heat Sink Disposable Heat Sink Subdweller Optics Improved Terrain Scanner Terrain Scan Processor Scrap Shield Hacking Suite Small Laser Light Assault Rifle Scrap Shield Fragment [Rating: 15] Favorites ----------- Power Light Ion Engine Engine Light Ion Engine Power Core Light Nuclear Core Propulsion Aluminum Leg Leg Aluminum Leg Utility Large Storage Unit Storage Large Storage Unit Processor Machine Analyzer Weapon Medium Laser Energy Gun Medium Laser Ballistic Gun Assault Rifle Impact Weapon Makeshift Hammer Build | -11 -10 -10 -10 ------- Run | Yrd Mat Min Sub Slots Evolved . | . . . . Power . | . . . . Propulsion . | . . . . Utility . | . . . . Weapon . | . . . . Parts Attached 19 | 7 3 4 5 Power 4 | 1 . 1 2 Engine 3 | 1 . 1 1 Core 1 | . . . 1 Reactor . | . . . . Propulsion 6 | 2 1 2 1 Treads . | . . . . Leg 6 | 2 1 2 1 Wheel . | . . . . Hover . | . . . . Flight . | . . . . Utility 4 | 1 2 . 1 Device . | . . . . Storage 3 | 1 2 . . Processor 1 | . . . 1 Hackware . | . . . . Protection . | . . . . Artifact . | . . . . Weapon 5 | 3 . 1 1 Energy Gun 2 | 1 . 1 . Energy Cannon . | . . . . Ballistic Gun 2 | 2 . . . Ballistic Cannon . | . . . . Launcher . | . . . . Special Weapon . | . . . . Impact Weapon 1 | . . . 1 Slashing Weapon . | . . . . Piercing Weapon . | . . . . Special Melee Weapon . | . . . . Unidentified Prototypes . | . . . . Parts Lost 8 | . . 4 4 Power 3 | . . 1 2 Propulsion 2 | . . 2 . Utility . | . . . . Weapon 3 | . . 1 2 Highest Loss Streak 4 | . . 4 2 To Critical Strikes . | . . . . Average Backups 10 | 1 8 12 11 Power 1 | . 2 2 . Propulsion 2 | . 2 3 2 Utility 3 | . 1 2 6 Weapon 2 | . 2 4 2 Tool/Special . | . . . . Unused Backups 13 | . 1 1 11 Power 1 | . 1 . . Propulsion 2 | . . 1 1 Utility 7 | . . . 7 Weapon 3 | . . . 3 Tool/Special . | . . . . Average Slot Usage (%) 85 | . 85 83 86 Engine 11 | . 14 13 6 Core 2 | . . . 6 Leg 27 | . 28 27 28 Storage 13 | . 14 14 13 Processor 3 | . . . 9 Energy Gun 11 | . 14 13 7 Ballistic Gun 9 | . 14 14 2 Impact Weapon 4 | . . . 11 Peak Build Rating 15 | 6 8 8 15 Average Rating 8 | 4 6 6 12 On Entrance 5 | . 6 7 8 Naked Turns . | . . . . Heaviest Build 30 | 12 27 29 30 Greatest Support 20 | 20 20 20 20 Greatest Overweight (x) 3 | 3 1 1 1 Average Overweight (x) . | . . 1 . Largest Inventory Capacity 15 | 8 15 15 15 Average Capacity 13 | 7 12 15 14 Most Carried 15 | 4 12 14 15 Average Carried 11 | 1 8 12 14 Final Capacity 15 | 8 15 15 15 Final Carried 15 | 2 12 14 15 Class Distribution -------------------- 81% | Mutant 18% | Scavenger-Mutant Dominant Class ---------------- Mutant | -10/Materials Mutant | -10/Mines Scavenger-Mutant | -10/Subcaves Resources | -11 -10 -10 -10 ----------- Run | Yrd Mat Min Sub Matter Collected 492 | 168 185 77 62 Remotely . | . . . . Salvage Created 486 | . 256 131 99 Parts 34 | . 13 17 4 Haulers Intercepted . | . . . . Recyclers Shooed 1 | . 1 . . Parts Field Recycled . | . . . . Retrieved Matter . | . . . . Parts Self-Destructed 6 | . . . 6 Prevented . | . . . . Kills | -11 -10 -10 -10 ------- Run | Yrd Mat Min Sub Combat Hostiles Destroyed 17 | . 6 8 3 Melee 2 | . . . 2 Guns 14 | . 6 8 . Classes Destroyed 4 | . 2 1 1 Operator 1 | . 1 . . Swarmer 8 | . . 8 . Grunt 6 | . 6 . . Subdweller 3 | . . . 3 Best Kill Streak 4 | . 4 3 2 Combat Bots Only 4 | . 4 3 2 Max Kills in Single Turn 1 | . 1 1 1 Gunslinging . | . . . . Exploded . | . . . . Melee 1 | . . . 1 Uniques/NPCs Destroyed . | . . . . Combat | -11 -10 -10 -10 -------- Run | Yrd Mat Min Sub Hostile Shots Fired 119 | . 23 53 43 Missed 40 | . 6 16 18 Hits 79 | . 17 37 25 Projectile 79 | . 17 37 25 Critical Strikes 2 | . . . 2 Damage Taken 1139 | . 217 309 613 Core 262 | . 52 27 183 Absorbed by Shields . | . . . . Core Remaining (%) 100 | 100 . . . Volleys Fired 38 | . 19 14 5 Largest 2 | . 2 2 2 Hottest 70 | . 70 70 70 Shots Fired 76 | . 39 28 9 Gun 76 | . 39 28 9 Cannon . | . . . . Launcher . | . . . . Special . | . . . . Kinetic 37 | . 19 14 4 Thermal 39 | . 20 14 5 Explosive . | . . . . Electromagnetic . | . . . . Robot Hit Streak 12 | . 12 4 5 Robot Miss Streak 5 | . 2 5 2 Penetration Max . | . . . . Secondary Targets 4 | . . 4 . Max Gunslinging Chain 1 | . . 1 . Shots Hit Robots 58 | . 29 14 15 Core Hits 28 | 1 17 8 2 Critical Kills 1 | . . . 1 Critical Parts Destroyed . | . . . . Critical Strikes 5 | . 2 1 2 Burn 3 | . 2 1 . Smash 2 | . . . 2 Melee Attacks 17 | . . . 17 Impact 17 | . . . 17 Slashing . | . . . . Piercing . | . . . . Sneak Attacks . | . . . . Combat Hostiles . | . . . . Follow-up Attacks . | . . . . Damage Inflicted 1008 | 4 385 190 429 Guns 606 | . 364 190 52 Cannons . | . . . . Explosions . | . . . . Melee 377 | . . . 377 Ramming 25 | 4 21 . . Kinetic 280 | . 175 91 14 Thermal 326 | . 189 99 38 Explosive . | . . . . Electromagnetic . | . . . . Impact 377 | . . . 377 Slashing . | . . . . Piercing . | . . . . Highest Corruption 2 | . 2 2 2 Average Corruption 2 | . 2 2 2 Corruption Purged . | . . . . Corruption Blocked . | . . . . Effects 20 | . 3 11 6 Message Errors 5 | . . 3 2 Matter Fused 4 | . 1 2 1 Heat Flow Errors 4 | . 1 2 1 Energy Discharges 2 | . . 1 1 Parts Fused 1 | . . 1 . Data Loss (minor) 1 | . . . 1 Misfires 1 | . 1 . . Alerts 2 | . . 2 . Overload Shots . | . . . . Overflow Damage 39 | . . . 39 Projectiles . | . . . . Explosions . | . . . . Melee 39 | . . . 39 Knockbacks 2 | . . . 2 Impact 2 | . . . 2 Kinetic . | . . . . Secondary . | . . . . Self-Inflicted Damage . | . . . . Shots . | . . . . Rammed . | . . . . Targets Rammed 6 | 2 4 . . Kicked 6 | 2 4 . . Crushed . | . . . . Highest Temperature 260 | . 171 260 251 Average Temperature 82 | . 63 99 115 Received Heat Transfer 526 | . 123 . 403 Siege Activations . | . . . . Martial Activations . | . . . . Shielding Activations . | . . . . Robots Disrupted . | . . . . Combat Hostiles . | . . . . Robots Corrupted 1 | . . . 1 Combat Hostiles 1 | . . . 1 Parts Fried 2 | . . . 2 Impact Corruptions 2 | . . . 2 Robots Melted . | . . . . Combat Hostiles . | . . . . Parts Melted 3 | . 2 . 1 Heat Transferred 1184 | . 703 370 111 Parts Sabotaged . | . . . . Parts Stolen . | . . . . Parts Stripped . | . . . . Power Chain Reactions . | . . . . Alert | -11 -10 -10 -10 ------- Run | Yrd Mat Min Sub Maximum Alert Level . | . . . . Low Security (%) 100 | 100 100 100 . Level 1 . | . . . . Level 2 . | . . . . Level 3 . | . . . . Level 4 . | . . . . Level 5 . | . . . . High Security . | . . . . Max Security . | . . . . Peak Influence 90 | . 80 90 . Initial . | . . . . Average 29 | . 36 28 . Influence Increases 345 | . 155 190 . Destroy 0b10 Robot/C 280 | . 120 160 . Destroy 0b10 Robot/NC 5 | . 5 . . Destroy Leader 60 | . 30 30 . Influence Decreases 345 | . 155 190 . Time Decay 345 | . 155 190 . Squads Dispatched 1 | . 1 . . Investigation 1 | . 1 . . Extermination . | . . . . Reinforcement . | . . . . Assault . | . . . . Garrison . | . . . . Intercept . | . . . . Searches Triggered . | . . . . Construction Impeded . | . . . . Haulers Reinforced . | . . . . Active Scanning Responses . | . . . . Cargo Convoy Interrupts . | . . . . Stealth | -11 -10 -10 -10 --------- Run | Yrd Mat Min Sub Distress Signals 1 | . 1 . . Communications Jammed . | . . . . Distress Signals . | . . . . Times Spotted 29 | . 14 9 6 Peak Tracking Total 5 | . 5 3 2 Tactical Retreats . | . . . . Traps | -11 -10 -10 -10 ------- Run | Yrd Mat Min Sub Traps Triggered 2 | . 2 . . Indirectly . | . . . . Trap Hack Attempts . | . . . . Triggered . | . . . . Disarmed . | . . . . Reprogrammed . | . . . . Reused . | . . . . Traps Extracted . | . . . . Installed . | . . . . Triggered . | . . . . Machines | -11 -10 -10 -10 ---------- Run | Yrd Mat Min Sub Machines Disabled . | . . . . Max in Single Turn . | . . . . Machines Repaired . | . . . . Machines Dismantled . | . . . . Machines Sabotaged . | . . . . Overloaded Fab Kills . | . . . . Hacking | -11 -10 -10 -10 --------- Run | Yrd Mat Min Sub Machines Accessed 1 | . 1 . . Terminals 1 | . 1 . . Fabricators . | . . . . Repair Stations . | . . . . Recycling Units . | . . . . Scanalyzers . | . . . . Garrison Access . | . . . . Total Hacks 1 | . 1 . . Successful 1 | . 1 . . Failed . | . . . . Catastrophic . | . . . . Database Lockouts . | . . . . Manual . | . . . . Terminals 1 | . 1 . . Fabricators . | . . . . Repair Stations . | . . . . Recycling Units . | . . . . Scanalyzers . | . . . . Garrison Access . | . . . . Terminal Hacks 1 | . 1 . . Patrol Status 1 | . 1 . . Fabricator Hacks . | . . . . Repair Station Hacks . | . . . . Recycling Unit Hacks . | . . . . Scanalyzer . | . . . . Garrison Access Hacks . | . . . . Unauthorized Hacks . | . . . . Terminals . | . . . . Fabricators . | . . . . Repair Stations . | . . . . Recycling Units . | . . . . Scanalyzers . | . . . . Garrison Access . | . . . . Data Cores Recovered 1 | . 1 . . Used . | . . . . Hacking Detections . | . . . . Full Trace Events . | . . . . Feedback Events . | . . . . Feedback Blocked . | . . . . Robot Schematics Acquired . | . . . . Robots Built . | . . . . Authchips . | . . . . Time . | . . . . Total Robot Build Rating . | . . . . Part Schematics Acquired . | . . . . Parts Built . | . . . . Authchips . | . . . . Time . | . . . . Total Part Build Rating . | . . . . Parts Repaired . | . . . . Time . | . . . . Parts Recycled . | . . . . Recycled Matter . | . . . . Retrieved Matter . | . . . . Retrieved Components . | . . . . Parts Scanalyzed . | . . . . Part Schematics Acquired . | . . . . Parts Damaged . | . . . . Bothacking | -11 -10 -10 -10 ------------ Run | Yrd Mat Min Sub Used RIF Installer . | . . . . Robots Hacked . | . . . . Non-combat . | . . . . Combat . | . . . . Robot Hacks Applied . | . . . . Relay Couplers Released . | . . . . Fabnet Peak Effective % . | . . . . Robots Rewired . | . . . . Allies Hacked . | . . . . Hacks Repelled . | . . . . Allies | -11 -10 -10 -10 -------- Run | Yrd Mat Min Sub Total Allies . | . . . . Largest Group . | . . . . Highest-Rated Group . | . . . . Highest-Rated Ally . | . . . . Total Orders . | . . . . Ally Attacks . | . . . . Total Damage . | . . . . Kills . | . . . . Allies Corrupted . | . . . . Allies Melted . | . . . . Intel | -11 -10 -10 -10 ------- Run | Yrd Mat Min Sub Active Infowar (turns) 374 | . . . 374 Machine Analysis 374 | . . . 374 Robot Analysis Total . | . . . . Derelict Logs Recovered 1 | . . 1 . Drone Launches . | . . . . Drone Recoveries . | . . . . Exploration | -11 -10 -10 -10 ------------- Run | Yrd Mat Min Sub Turns Passed 1595 | 59 391 587 558 Spaces Moved 757 | 32 191 279 255 Core 11 | 11 . . . Treads . | . . . . Legs 746 | 21 191 279 255 Wheels . | . . . . Hover . | . . . . Flight . | . . . . Fastest Speed 50 | 50 120 190 120 Average Speed 179 | 136 161 190 186 Slowest Speed 200 | 200 190 190 190 Overloaded Moves . | . . . . Propulsion Burnouts . | . . . . Robots Hopped . | . . . . Potential Cave-ins . | . . . . Cave-ins Triggered . | . . . . Exploration Rate (%) 23 | 4 30 49 11 Regions Visited 3 Branch Regions 2 Pre-discovered Areas 1 | . . 1 . Known Exits Taken . | . . . . Unknown Exits Taken 3 | 1 1 1 . Scrap Searched 1 | . . 1 . Spaces Dug . | . . . . Terrain Destroyed . | . . . . Melee . | . . . . Projectile . | . . . . AOE . | . . . . Terrain Rammed . | . . . . Walls Destroyed . | . . . . Machines Disabled . | . . . . Actions | -11 -10 -10 -10 --------- Run | Yrd Mat Min Sub Total 897 | 44 233 309 311 Wait 20 | . 4 5 11 Move 755 | 32 190 278 255 Hop . | . . . . Pick Up 34 | 4 10 7 13 Fast Attach 8 | 4 2 . 2 Attach 9 | 2 . 4 3 Detach . | . . . . Swap 3 | 1 1 . 1 Drop 8 | . 3 1 4 Fire 38 | . 19 14 5 Melee 17 | . . . 17 Ram . | . . . . Kick 5 | 1 4 . . Crush . | . . . . Escape Stasis . | . . . . Rewire . | . . . . Trap . | . . . . Miscellaneous . | . . . . Route ------- -11/Scrapyard -10/Materials -10/Mines -10/Subcaves History --------- Turn | Location | Event 17 | -11/Scrapyard | Discovered new exit (range 16) 60 | -11/Scrapyard | Entered Materials 301 | -10/Materials | Build established: Mutant 421 | -10/Materials | Discovered new exit (range 14) 451 | -10/Materials | Entered Mines 525 | -10/Mines | Met a Derelict bent on vengeance 614 | -10/Mines | Assembled infested the area 702 | -10/Mines | Learned location of Mines (-9) 765 | -10/Mines | Lost 4 parts (1p2n1w) 853 | -10/Mines | A weapon hastily lodged in a ceiling crevice suddenly fell to the ground 1016 | -10/Mines | Discovered new exit (range 10) 1038 | -10/Mines | Entered Subcaves 1039 | -10/Subcaves | Approached by a straggling Scientist 1142 | -10/Subcaves | Core integrity fell below 50% 1588 | -10/Subcaves | Core integrity fell below 20% 1596 | -10/Subcaves | Destroyed by SN-IVM(R) with Subdweller Laser Last Messages --------------- Acquired 10 matter. LU-WRX(R) suffers critical hit (Smash). LU-WRX(R) knocked back. Lgt. Ion Engine destroyed. Med. Laser destroyed. Destroyed Sub. Monowheel. LU-WRX(R) system corrupted by crushing effect. LU-WRX(R) system terminally corrupted. Disposable Heat Sink fried. Sub. Optics fried. Acquired Scrap Shield Fragment. Dropped Aluminum Leg. Acquired Scrap Shield Fragment. W6-MUR(R) misfires. W6-MUR(R) destroyed. System corrupted: Component data lost. Acquired 20 matter. System corrupted: Matter fused (-9). ,/CREOFXTBOOFOUI L>7P 03-HPN(O) collects matter. Map ----- +----------------------------------------------------+ | ???????????????????## [#####?? ??????????????????? | | ????????????????????#%!"#????? ??????????????????? | | ???????????????????## ##???? "??"###?#"????????? | | ???????????????????# ##??? "??"" ## ?????????? | | ???????????????????# #??? ?? ?????????? | | ???????????????????# ##?? ?? ?????????? | | ???????????????????#" ##?# ??# "#?????????# | | ???????????????????## #? #??# ""#?????????# | | ????????????????????# % #?# #??# " #?????????# | | ????????????????????### ##?# #?## #?###?????## | | ??????????????????????### ##?# #?# ###""###?##" | | ?????????????????###???# ### ### "" ##" ###"" | | ???????????????### #???## # " "" #??# % | | ??????????????## #???# ""#### | | ??????????????# ##??# ##" "" | | ??????????????# ##?### ### #### | | ??????????????# ##??############" ### | | ???????????????# ###??## ### #; "#?### | | ???????????????# #### ## O%&""###???? | | ????????######??# & ""####### | | ????????? ### # ## | | ????????????# # ## ## " | | ??????????????# R #"" ""# | | ??????????????# R ########## | | ??????????????# # ##???????# # | | ??????????????# ## @ #????????# ## | | ???????# ##### ### ##????????#### ### | | ???????# #?# ##### ##????????????###?# | | ????????#### ### #?###???#####?????????????????? | | ???????????# ?# # #????????????????????????????? | | ??????????# ??# ## #???????????????????????????? | | ??????????# ???## #?"#???????????????????????????? | | ??????????#?????###??#???????????????????????????? | | ?????????????????????????????????????????????????? | | ?????????????????????????????????????????????????? | | ?????????????????????????????????????????????????? | | ?????????????????????????????????????????????????? | | ?????????????????????????????????????????????????? | | ?????????????????????????????????????????????????? | | ?????????????????????????????????????????????????? | | ?????????????????????????????????????????????????? | | ?????????????????????????????????????????????????? | | ?????????????????????????????????????????????????? | | ?????????????????????????????????????????????????? | | ?????????????????????????????????????????????????? | | ?????????????????????????????????????????????????? | | ?????????????????????????????????????????????????? | | ?????????????????????????????????????????????????? | | ?????????????????????????????????????????????????? | | ?????????????????????????????????????????????????? | +----------------------------------------------------+ Best States ------------- Heat Dissipation 25 Energy Generation 14 Energy Capacity 250 Matter Stores 300 Matter Capacity 300 Sight Range 16 Terrain Scan Density 10 Evasion (%) 55 Item Schematics ----------------- None Robot Schematics ------------------ None Fabricated ------------ Nothing Repaired ---------- Nothing Alien Tech Used ----------------- None Achievements -------------- None Challenges ------------ None Game ------ Seed SystemForceProcessor Manual? 0 Play Time 00:12:02 Cumulative 20.1 hours Start 2025.07.01 @ 22:38:47 End 2025.07.01 @ 22:50:31 Sessions 1 Manual Loads 0 Difficulty Rogue Special Mode None Game No. 17 Rogue 17 Adventurer 0 Explorer 0 Win Type - Total 0 Types 0/0/0/0/0/0/0/0/0/0 Lore% 24 Gallery% 27 Achievement% 21 Wizard Run 0 Options --------- Layout 2 ASCII 0 Keyboard 0 Movement Numpad Keybinds 0 Fullscreen 0 Font 20/X11 Map View 64x51 Zoom Use 0% Tactical HUD 0 Map Filters NONE Filters NONE Steam 0 RUN: d7558194-ede2-4511-bdb0-dbd465e82941